[Event "Titled Tuesday Blitz July 11 Late 2023"]
[White "Rodriguez Fontecha, Marcos"]
[Black "rikchessmx"]
[WhiteFideId "2256576"]
[WhiteElo "2419"]
[BlackElo "2252"]
[Result "1-0"]
[Round "6"]
[TimeControl "180+2"]
[Date "2023.07.11"]
[WhiteClock "0:00:14"]
[BlackClock "0:00:09"]
[Board "118"]

1. e4 {[%clk 0:02:59]}  e5 {[%clk 0:02:57]} 2. Nf3 {[%clk 0:02:59]}  Nc6 {[%clk 0:02:58]} 3. d4 {[%clk 0:02:57]}  exd4 {[%clk 0:02:57]} 4. Bc4 {[%clk 0:02:58]}  Bc5 {[%clk 0:02:56]} 5. Ng5 {[%clk 0:02:57]}  Ne5 {[%clk 0:02:53]} 6. Nxf7 {[%clk 0:02:58]}  Qf6 {[%clk 0:02:49]} 7. Nxe5 {[%clk 0:02:25]}  Qxe5 {[%clk 0:02:48]} 8. O-O {[%clk 0:02:25]}  d6 {[%clk 0:02:34]} 9. f4 {[%clk 0:02:13]}  d3+ {[%clk 0:02:14]} 10. Kh1 {[%clk 0:02:10]}  dxc2 {[%clk 0:02:14]} 11. Qxc2 {[%clk 0:02:03]}  Qh5 {[%clk 0:02:14]} 12. e5 {[%clk 0:01:50]}  Ne7 {[%clk 0:02:08]} 13. Nc3 {[%clk 0:01:28]}  c6 {[%clk 0:02:04]} 14. exd6 {[%clk 0:01:10]}  Bxd6 {[%clk 0:02:02]} 15. Ne4 {[%clk 0:01:10]}  Bc7 {[%clk 0:01:57]} 16. Ng3 {[%clk 0:01:00]}  Qg4 {[%clk 0:01:47]} 17. Qb3 {[%clk 0:00:58]}  Rf8 {[%clk 0:01:41]} 18. Bd2 {[%clk 0:00:52]}  b5 {[%clk 0:01:40]} 19. Be2 {[%clk 0:00:45]}  Qe6 {[%clk 0:01:38]} 20. Qc2 {[%clk 0:00:41]}  g6 {[%clk 0:01:33]} 21. a4 {[%clk 0:00:37]}  bxa4 {[%clk 0:01:27]} 22. Bc4 {[%clk 0:00:36]}  Qg4 {[%clk 0:01:15]} 23. Rae1 {[%clk 0:00:34]}  Bd6 {[%clk 0:00:49]} 24. Ne4 {[%clk 0:00:24]}  Bc7 {[%clk 0:00:37]} 25. Bb4 {[%clk 0:00:21]}  Bf5 {[%clk 0:00:25]} 26. Qxa4 {[%clk 0:00:13]}  Bxe4 {[%clk 0:00:16]} 27. Rxe4 {[%clk 0:00:12]}  Bd8 {[%clk 0:00:13]} 28. Qxc6+ {[%clk 0:00:09]}  Qd7 {[%clk 0:00:11]} 29. Qxa8 {[%clk 0:00:10]}  Rf7 {[%clk 0:00:10]} 30. Bxf7+ {[%clk 0:00:09]}  Kxf7 {[%clk 0:00:11]} 31. Bxe7 {[%clk 0:00:09]}  Bxe7 {[%clk 0:00:10]} 32. Rfe1 {[%clk 0:00:09]}  Bc5 {[%clk 0:00:10]} 33. R4e2 {[%clk 0:00:07]}  Bb6 {[%clk 0:00:10]} 34. Qe4 {[%clk 0:00:08]}  h5 {[%clk 0:00:07]} 35. Qe6+ {[%clk 0:00:08]}  Qxe6 {[%clk 0:00:08]} 36. Rxe6 {[%clk 0:00:09]}  h4 {[%clk 0:00:08]} 37. Re7+ {[%clk 0:00:09]}  Kf6 {[%clk 0:00:08]} 38. R7e6+ {[%clk 0:00:09]}  Kf5 {[%clk 0:00:08]} 39. Rxb6 {[%clk 0:00:10]}  axb6 {[%clk 0:00:08]} 40. g3 {[%clk 0:00:10]}  h3 {[%clk 0:00:07]} 41. Kg1 {[%clk 0:00:10]}  Kg4 {[%clk 0:00:06]} 42. Kf2 {[%clk 0:00:11]}  g5 {[%clk 0:00:06]} 43. fxg5 {[%clk 0:00:10]}  Kxg5 {[%clk 0:00:07]} 44. Kf3 {[%clk 0:00:10]}  Kf5 {[%clk 0:00:08]} 45. Rc1 {[%clk 0:00:10]}  Ke5 {[%clk 0:00:08]} 46. Rc6 {[%clk 0:00:11]}  b5 {[%clk 0:00:08]} 47. Rb6 {[%clk 0:00:11]}  Kd4 {[%clk 0:00:09]} 48. Rxb5 {[%clk 0:00:12]}  Kc4 {[%clk 0:00:09]} 49. Rh5 {[%clk 0:00:11]}  Kb3 {[%clk 0:00:09]} 50. Rxh3 {[%clk 0:00:12]}  Kxb2 {[%clk 0:00:10]} 51. Rh4 {[%clk 0:00:13]}  Kc3 {[%clk 0:00:11]} 52. Re4 {[%clk 0:00:13]}  Kd3 {[%clk 0:00:09]} 53. h4 {[%clk 0:00:14]} 1-0


[Site "https://www.chess.com"]

[Event "Titled Tuesday Blitz July 11 Late 2023"]
[White "Sarkar, Justin"]
[Black "Lopez Gracia, Fernando"]
[WhiteFideId "2010011"]
[BlackFideId "2207184"]
[WhiteElo "2251"]
[BlackElo "2415"]
[Result "1-0"]
[Round "6"]
[TimeControl "180+2"]
[Date "2023.07.11"]
[WhiteClock "0:00:05"]
[BlackClock "0:00:00"]
[Board "119"]

1. d4 {[%clk 0:02:55]}  Nf6 {[%clk 0:02:50]} 2. c4 {[%clk 0:02:54]}  e6 {[%clk 0:02:50]} 3. Nc3 {[%clk 0:02:52]}  Bb4 {[%clk 0:02:48]} 4. e3 {[%clk 0:02:52]}  O-O {[%clk 0:02:47]} 5. Bd3 {[%clk 0:02:51]}  Bxc3+ {[%clk 0:02:46]} 6. bxc3 {[%clk 0:02:50]}  c5 {[%clk 0:02:47]} 7. Ne2 {[%clk 0:02:31]}  b6 {[%clk 0:02:40]} 8. O-O {[%clk 0:02:29]}  Nc6 {[%clk 0:02:34]} 9. e4 {[%clk 0:02:20]}  Ne8 {[%clk 0:02:33]} 10. e5 {[%clk 0:02:01]}  f5 {[%clk 0:02:23]} 11. Be3 {[%clk 0:01:33]}  Qe7 {[%clk 0:02:05]} 12. f4 {[%clk 0:01:17]}  Ba6 {[%clk 0:01:56]} 13. dxc5 {[%clk 0:00:42]}  bxc5 {[%clk 0:01:55]} 14. Qa4 {[%clk 0:00:41]}  Nc7 {[%clk 0:01:54]} 15. Qa3 {[%clk 0:00:38]}  Rfd8 {[%clk 0:01:30]} 16. Bxc5 {[%clk 0:00:35]}  Qf7 {[%clk 0:01:24]} 17. Bd6 {[%clk 0:00:35]}  Bb7 {[%clk 0:00:50]} 18. Bxc7 {[%clk 0:00:33]}  Rdc8 {[%clk 0:00:49]} 19. Bd6 {[%clk 0:00:33]}  Qg6 {[%clk 0:00:46]} 20. Rf2 {[%clk 0:00:30]}  a5 {[%clk 0:00:44]} 21. Rb1 {[%clk 0:00:28]}  Ba6 {[%clk 0:00:32]} 22. Rf3 {[%clk 0:00:26]}  Nd8 {[%clk 0:00:26]} 23. c5 {[%clk 0:00:24]}  Bb7 {[%clk 0:00:23]} 24. Rg3 {[%clk 0:00:21]}  Qh5 {[%clk 0:00:23]} 25. c4 {[%clk 0:00:11]}  Bc6 {[%clk 0:00:22]} 26. Qc3 {[%clk 0:00:10]}  Nf7 {[%clk 0:00:21]} 27. Qd4 {[%clk 0:00:08]}  Nh6 {[%clk 0:00:20]} 28. h3 {[%clk 0:00:06]}  a4 {[%clk 0:00:17]} 29. Rb6 {[%clk 0:00:06]}  a3 {[%clk 0:00:17]} 30. Qf2 {[%clk 0:00:05]}  Qf7 {[%clk 0:00:15]} 31. Nd4 {[%clk 0:00:05]}  g6 {[%clk 0:00:11]} 32. Nxc6 {[%clk 0:00:04]}  Rxc6 {[%clk 0:00:10]} 33. Be2 {[%clk 0:00:03]}  Rac8 {[%clk 0:00:09]} 34. Rxa3 {[%clk 0:00:03]}  Rd8 {[%clk 0:00:06]} 35. Bf3 {[%clk 0:00:03]}  Rcc8 {[%clk 0:00:06]} 36. Rb7 {[%clk 0:00:03]}  Qe8 {[%clk 0:00:06]} 37. Raa7 {[%clk 0:00:03]}  Nf7 {[%clk 0:00:07]} 38. c6 {[%clk 0:00:03]}  Nxd6 {[%clk 0:00:06]} 39. exd6 {[%clk 0:00:03]}  dxc6 {[%clk 0:00:07]} 40. Rg7+ {[%clk 0:00:03]}  Kf8 {[%clk 0:00:07]} 41. Rxh7 {[%clk 0:00:03]}  Kg8 {[%clk 0:00:04]} 42. Qd4 {[%clk 0:00:04]}  e5 {[%clk 0:00:03]} 43. Qxe5 {[%clk 0:00:04]}  Qxe5 {[%clk 0:00:03]} 44. fxe5 {[%clk 0:00:04]}  Re8 {[%clk 0:00:03]} 45. Rhg7+ {[%clk 0:00:04]}  Kh8 {[%clk 0:00:03]} 46. Rh7+ {[%clk 0:00:05]}  Kg8 {[%clk 0:00:03]} 47. d7 {[%clk 0:00:05]}  Rcd8 {[%clk 0:00:01]} 48. dxe8=Q+ {[%clk 0:00:05]}  Rxe8 {[%clk 0:00:02]} 49. Rhg7+ {[%clk 0:00:05]}  Kf8 {[%clk 0:00:03]} 50. Rxg6 {[%clk 0:00:05]}  Rxe5 {[%clk 0:00:02]} 51. Rf6+ {[%clk 0:00:05]}  Ke8 {[%clk 0:00:02]} 52. Bxc6+ {[%clk 0:00:05]}  Kd8 {[%clk 0:00:00]} 53. Rf8+ {[%clk 0:00:05]} 1-0


[Site "https://www.chess.com"]

[Event "Titled Tuesday Blitz July 11 Late 2023"]
[White "BrandonJiang123456"]
[Black "Buchenau, Frank"]
[BlackFideId "4604350"]
[WhiteElo "2228"]
[BlackElo "2401"]
[Result "1-0"]
[Round "6"]
[TimeControl "180+2"]
[Date "2023.07.11"]
[WhiteClock "0:01:10"]
[BlackClock "0:00:28"]
[Board "122"]

1. e4 {[%clk 0:02:57]}  e6 {[%clk 0:03:00]} 2. d4 {[%clk 0:02:53]}  d5 {[%clk 0:03:00]} 3. Nc3 {[%clk 0:02:53]}  Nf6 {[%clk 0:03:00]} 4. exd5 {[%clk 0:02:49]}  exd5 {[%clk 0:03:00]} 5. Bg5 {[%clk 0:02:50]}  Bb4 {[%clk 0:02:58]} 6. Bd3 {[%clk 0:02:44]}  O-O {[%clk 0:02:57]} 7. Ne2 {[%clk 0:02:43]}  c6 {[%clk 0:02:56]} 8. O-O {[%clk 0:02:38]}  Bg4 {[%clk 0:02:54]} 9. f3 {[%clk 0:02:36]}  Bh5 {[%clk 0:02:54]} 10. Nf4 {[%clk 0:02:36]}  Bg6 {[%clk 0:02:52]} 11. Nxg6 {[%clk 0:02:37]}  hxg6 {[%clk 0:02:51]} 12. f4 {[%clk 0:02:38]}  Qb6 {[%clk 0:02:29]} 13. Ne2 {[%clk 0:02:34]}  Ng4 {[%clk 0:02:15]} 14. Rf3 {[%clk 0:02:14]}  f5 {[%clk 0:02:05]} 15. h3 {[%clk 0:02:09]}  Nf6 {[%clk 0:02:04]} 16. Bxf6 {[%clk 0:01:57]}  gxf6 {[%clk 0:01:59]} 17. h4 {[%clk 0:01:58]}  c5 {[%clk 0:01:37]} 18. c3 {[%clk 0:01:54]}  c4 {[%clk 0:01:33]} 19. Bc2 {[%clk 0:01:50]}  Bd6 {[%clk 0:01:28]} 20. h5 {[%clk 0:01:49]}  Kf7 {[%clk 0:01:08]} 21. hxg6+ {[%clk 0:01:46]}  Kxg6 {[%clk 0:01:09]} 22. Rg3+ {[%clk 0:01:43]}  Kf7 {[%clk 0:01:08]} 23. Bxf5 {[%clk 0:01:40]}  Na6 {[%clk 0:01:01]} 24. Bg6+ {[%clk 0:01:30]}  Ke7 {[%clk 0:01:00]} 25. Re3+ {[%clk 0:01:27]}  Kd7 {[%clk 0:00:58]} 26. Ng3 {[%clk 0:01:25]}  Kc7 {[%clk 0:00:52]} 27. Nf5 {[%clk 0:01:21]}  Bxf4 {[%clk 0:00:48]} 28. Re7+ {[%clk 0:01:20]}  Kd8 {[%clk 0:00:28]} 29. Qf3 {[%clk 0:01:10]} 1-0


[Site "https://www.chess.com"]

[Event "Titled Tuesday Blitz July 11 Late 2023"]
[White "Djordjevic, Dejan N"]
[Black "Campos, Maria Jose"]
[WhiteFideId "913316"]
[BlackFideId "146803"]
[WhiteElo "2099"]
[BlackElo "2393"]
[Result "1/2-1/2"]
[Round "6"]
[TimeControl "180+2"]
[Date "2023.07.11"]
[WhiteClock "0:00:17"]
[BlackClock "0:01:07"]
[Board "125"]

1. e4 {[%clk 0:03:00]}  e5 {[%clk 0:02:55]} 2. Nf3 {[%clk 0:03:00]}  Nc6 {[%clk 0:02:54]} 3. Bc4 {[%clk 0:02:59]}  Nf6 {[%clk 0:02:54]} 4. d3 {[%clk 0:02:58]}  Bc5 {[%clk 0:02:54]} 5. O-O {[%clk 0:02:58]}  d6 {[%clk 0:02:54]} 6. Re1 {[%clk 0:02:58]}  h6 {[%clk 0:02:54]} 7. c3 {[%clk 0:02:58]}  a6 {[%clk 0:02:53]} 8. Bb3 {[%clk 0:02:56]}  Ba7 {[%clk 0:02:53]} 9. Nbd2 {[%clk 0:02:56]}  O-O {[%clk 0:02:51]} 10. Nf1 {[%clk 0:02:56]}  Be6 {[%clk 0:02:51]} 11. Bc2 {[%clk 0:02:55]}  Re8 {[%clk 0:02:47]} 12. Be3 {[%clk 0:02:35]}  d5 {[%clk 0:02:43]} 13. Bxa7 {[%clk 0:02:34]}  Rxa7 {[%clk 0:02:44]} 14. Qe2 {[%clk 0:02:31]}  d4 {[%clk 0:02:42]} 15. Ng3 {[%clk 0:02:27]}  Ra8 {[%clk 0:02:31]} 16. Bb3 {[%clk 0:02:26]}  a5 {[%clk 0:02:29]} 17. Bxe6 {[%clk 0:02:19]}  fxe6 {[%clk 0:02:29]} 18. Rac1 {[%clk 0:02:18]}  Qd6 {[%clk 0:02:26]} 19. Nf1 {[%clk 0:02:14]}  Re7 {[%clk 0:02:24]} 20. N1d2 {[%clk 0:02:14]}  b5 {[%clk 0:02:23]} 21. a4 {[%clk 0:02:12]}  dxc3 {[%clk 0:02:19]} 22. bxc3 {[%clk 0:02:10]}  b4 {[%clk 0:02:16]} 23. Nc4 {[%clk 0:02:09]}  Qc5 {[%clk 0:02:14]} 24. cxb4 {[%clk 0:02:05]}  Qxb4 {[%clk 0:02:12]} 25. Ncxe5 {[%clk 0:01:58]}  Nxe5 {[%clk 0:02:12]} 26. Nxe5 {[%clk 0:01:59]}  Qxa4 {[%clk 0:02:12]} 27. Rc4 {[%clk 0:01:46]}  Qb5 {[%clk 0:02:12]} 28. Qc2 {[%clk 0:01:41]}  Qxe5 {[%clk 0:02:09]} 29. d4 {[%clk 0:01:40]}  Qf4 {[%clk 0:02:03]} 30. f3 {[%clk 0:01:37]}  Rd7 {[%clk 0:01:58]} 31. Qb3 {[%clk 0:01:21]}  Kh8 {[%clk 0:01:54]} 32. g3 {[%clk 0:01:18]}  Qd2 {[%clk 0:01:53]} 33. Rd1 {[%clk 0:01:18]}  Qe2 {[%clk 0:01:51]} 34. Ra4 {[%clk 0:01:03]}  Rad8 {[%clk 0:01:44]} 35. Ra2 {[%clk 0:01:00]}  Qa6 {[%clk 0:01:38]} 36. Rad2 {[%clk 0:00:45]}  a4 {[%clk 0:01:36]} 37. Qb4 {[%clk 0:00:44]}  a3 {[%clk 0:01:34]} 38. Kg2 {[%clk 0:00:43]}  a2 {[%clk 0:01:26]} 39. Ra1 {[%clk 0:00:42]}  Qb6 {[%clk 0:01:26]} 40. Qxb6 {[%clk 0:00:37]}  cxb6 {[%clk 0:01:27]} 41. Raxa2 {[%clk 0:00:34]}  Rxd4 {[%clk 0:01:27]} 42. Rdb2 {[%clk 0:00:30]}  Rb8 {[%clk 0:01:14]} 43. Rb5 {[%clk 0:00:27]}  Nd7 {[%clk 0:01:10]} 44. Rc2 {[%clk 0:00:17]}  Kg8 {[%clk 0:01:07]} 1/2-1/2


[Site "https://www.chess.com"]

[Event "Titled Tuesday Blitz July 11 Late 2023"]
[White "Sadykov, Ramil"]
[Black "Prydun, Andriy"]
[WhiteFideId "24113590"]
[BlackFideId "14145898"]
[WhiteElo "2589"]
[BlackElo "2378"]
[Result "1-0"]
[Round "6"]
[TimeControl "180+2"]
[Date "2023.07.11"]
[WhiteClock "0:00:25"]
[BlackClock "0:00:02"]
[Board "129"]

1. e4 {[%clk 0:02:54]}  d5 {[%clk 0:02:57]} 2. exd5 {[%clk 0:02:53]}  Qxd5 {[%clk 0:02:58]} 3. Nc3 {[%clk 0:02:52]}  Qd8 {[%clk 0:02:59]} 4. Nf3 {[%clk 0:02:49]}  Nf6 {[%clk 0:02:57]} 5. Bc4 {[%clk 0:02:49]}  e6 {[%clk 0:02:54]} 6. O-O {[%clk 0:02:48]}  b6 {[%clk 0:02:54]} 7. d4 {[%clk 0:02:41]}  Bb7 {[%clk 0:02:53]} 8. Re1 {[%clk 0:02:41]}  Be7 {[%clk 0:02:48]} 9. Ne5 {[%clk 0:02:23]}  O-O {[%clk 0:02:43]} 10. Bf4 {[%clk 0:02:17]}  Nbd7 {[%clk 0:02:41]} 11. Qe2 {[%clk 0:02:14]}  Bb4 {[%clk 0:02:33]} 12. Bd2 {[%clk 0:02:04]}  Bxc3 {[%clk 0:02:20]} 13. Bxc3 {[%clk 0:02:05]}  Nxe5 {[%clk 0:01:01]} 14. dxe5 {[%clk 0:02:06]}  Nd5 {[%clk 0:00:44]} 15. Bd2 {[%clk 0:02:04]}  Qe7 {[%clk 0:00:40]} 16. c3 {[%clk 0:01:58]}  Rfd8 {[%clk 0:00:39]} 17. Rad1 {[%clk 0:01:55]}  Qh4 {[%clk 0:00:31]} 18. g3 {[%clk 0:01:49]}  Qh3 {[%clk 0:00:27]} 19. f3 {[%clk 0:01:44]}  Qh5 {[%clk 0:00:17]} 20. f4 {[%clk 0:01:42]}  Qh3 {[%clk 0:00:14]} 21. Bd3 {[%clk 0:01:34]}  Nb4 {[%clk 0:00:09]} 22. Be4 {[%clk 0:01:28]}  Bxe4 {[%clk 0:00:08]} 23. Qxe4 {[%clk 0:01:29]}  Nd3 {[%clk 0:00:08]} 24. Re2 {[%clk 0:01:17]}  Nxb2 {[%clk 0:00:08]} 25. Rb1 {[%clk 0:01:16]}  Nd3 {[%clk 0:00:09]} 26. Be3 {[%clk 0:01:15]}  Qf5 {[%clk 0:00:08]} 27. Qxf5 {[%clk 0:01:11]}  exf5 {[%clk 0:00:09]} 28. c4 {[%clk 0:00:51]}  Nc5 {[%clk 0:00:04]} 29. Bxc5 {[%clk 0:00:50]}  bxc5 {[%clk 0:00:05]} 30. Rb5 {[%clk 0:00:51]}  Rd7 {[%clk 0:00:02]} 31. Rxc5 {[%clk 0:00:51]}  Kf8 {[%clk 0:00:02]} 32. e6 {[%clk 0:00:46]}  fxe6 {[%clk 0:00:02]} 33. Rxe6 {[%clk 0:00:47]}  g6 {[%clk 0:00:03]} 34. a4 {[%clk 0:00:41]}  Rc8 {[%clk 0:00:02]} 35. Ra6 {[%clk 0:00:40]}  c6 {[%clk 0:00:02]} 36. Raxc6 {[%clk 0:00:38]}  Rxc6 {[%clk 0:00:02]} 37. Rxc6 {[%clk 0:00:39]}  Rd2 {[%clk 0:00:02]} 38. a5 {[%clk 0:00:38]}  Ke7 {[%clk 0:00:01]} 39. Rc7+ {[%clk 0:00:38]}  Kd6 {[%clk 0:00:02]} 40. Rxa7 {[%clk 0:00:37]}  h5 {[%clk 0:00:02]} 41. Ra6+ {[%clk 0:00:36]}  Kc5 {[%clk 0:00:02]} 42. Rxg6 {[%clk 0:00:36]}  Kxc4 {[%clk 0:00:02]} 43. Rg5 {[%clk 0:00:34]}  Rd5 {[%clk 0:00:02]} 44. a6 {[%clk 0:00:33]}  Kd3 {[%clk 0:00:03]} 45. a7 {[%clk 0:00:32]}  Ra5 {[%clk 0:00:03]} 46. Rxf5 {[%clk 0:00:32]}  Rxa7 {[%clk 0:00:04]} 47. Rxh5 {[%clk 0:00:32]}  Ra2 {[%clk 0:00:04]} 48. Re5 {[%clk 0:00:31]}  Kd4 {[%clk 0:00:04]} 49. h4 {[%clk 0:00:31]}  Rb2 {[%clk 0:00:03]} 50. h5 {[%clk 0:00:30]}  Rc2 {[%clk 0:00:03]} 51. Re1 {[%clk 0:00:31]}  Kd3 {[%clk 0:00:03]} 52. g4 {[%clk 0:00:27]}  Kd4 {[%clk 0:00:03]} 53. g5 {[%clk 0:00:25]}  Kd5 {[%clk 0:00:03]} 54. h6 {[%clk 0:00:26]}  Rc7 {[%clk 0:00:02]} 55. g6 {[%clk 0:00:25]}  Rc6 {[%clk 0:00:02]} 56. f5 {[%clk 0:00:24]}  Rc4 {[%clk 0:00:02]} 57. h7 {[%clk 0:00:24]}  Rg4+ {[%clk 0:00:02]} 58. Kh2 {[%clk 0:00:24]}  Rh4+ {[%clk 0:00:02]} 59. Kg3 {[%clk 0:00:24]}  Rh5 {[%clk 0:00:03]} 60. Kg4 {[%clk 0:00:24]}  Rh2 {[%clk 0:00:03]} 61. f6 {[%clk 0:00:24]}  Rg2+ {[%clk 0:00:03]} 62. Kf5 {[%clk 0:00:23]}  Rf2+ {[%clk 0:00:03]} 63. Kg5 {[%clk 0:00:23]}  Rg2+ {[%clk 0:00:04]} 64. Kh6 {[%clk 0:00:24]}  Rh2+ {[%clk 0:00:02]} 65. Kg7 {[%clk 0:00:25]} 1-0


[Site "https://www.chess.com"]

[Event "Titled Tuesday Blitz July 11 Late 2023"]
[White "Janaszak, Dawid"]
[Black "Weisz, Bryan"]
[WhiteFideId "1119206"]
[BlackFideId "30934133"]
[WhiteElo "2521"]
[BlackElo "2333"]
[Result "1-0"]
[Round "6"]
[TimeControl "180+2"]
[Date "2023.07.11"]
[WhiteClock "0:01:46"]
[BlackClock "0:00:54"]
[Board "130"]

1. Nc3 {[%clk 0:03:00]}  Na6 {[%clk 0:02:51]} 2. Nh3 {[%clk 0:02:58]}  Nc5 {[%clk 0:02:51]} 3. Nf4 {[%clk 0:02:58]}  Nh6 {[%clk 0:02:51]} 4. d4 {[%clk 0:02:57]}  Ne6 {[%clk 0:02:48]} 5. e4 {[%clk 0:02:55]}  d6 {[%clk 0:02:38]} 6. Bc4 {[%clk 0:02:51]}  Nxd4 {[%clk 0:02:32]} 7. Qxd4 {[%clk 0:02:48]}  e5 {[%clk 0:02:33]} 8. Qd3 {[%clk 0:02:35]}  exf4 {[%clk 0:02:32]} 9. Bxf4 {[%clk 0:02:36]}  Ng4 {[%clk 0:02:23]} 10. O-O-O {[%clk 0:02:29]}  Nxf2 {[%clk 0:02:17]} 11. Qf3 {[%clk 0:02:22]}  Nxd1 {[%clk 0:01:38]} 12. Bxf7+ {[%clk 0:02:21]}  Kd7 {[%clk 0:01:32]} 13. Qh3+ {[%clk 0:02:09]}  Kc6 {[%clk 0:01:29]} 14. Bd5+ {[%clk 0:02:07]}  Kb6 {[%clk 0:01:24]} 15. Na4+ {[%clk 0:02:06]}  Ka5 {[%clk 0:01:15]} 16. Bd2+ {[%clk 0:02:03]}  Ka6 {[%clk 0:01:09]} 17. Nc5+ {[%clk 0:01:49]}  dxc5 {[%clk 0:00:54]} 18. Qa3+ {[%clk 0:01:46]} 1-0


[Site "https://www.chess.com"]

[Event "Titled Tuesday Blitz July 11 Late 2023"]
[White "Pesotskiy, Mikhail"]
[Black "AndresDelgado77"]
[WhiteFideId "34164453"]
[WhiteElo "2381"]
[BlackElo "2312"]
[Result "1-0"]
[Round "6"]
[TimeControl "180+2"]
[Date "2023.07.11"]
[WhiteClock "0:00:22"]
[BlackClock "0:00:24"]
[Board "134"]

1. d4 {[%clk 0:02:51]}  Nf6 {[%clk 0:02:59]} 2. c4 {[%clk 0:02:52]}  e5 {[%clk 0:02:57]} 3. dxe5 {[%clk 0:02:52]}  Ng4 {[%clk 0:02:57]} 4. Bf4 {[%clk 0:02:52]}  g5 {[%clk 0:02:57]} 5. Bg3 {[%clk 0:02:52]}  Bg7 {[%clk 0:02:58]} 6. Nf3 {[%clk 0:02:50]}  Nc6 {[%clk 0:02:58]} 7. Nbd2 {[%clk 0:02:50]}  Ngxe5 {[%clk 0:02:53]} 8. Nxe5 {[%clk 0:02:48]}  Nxe5 {[%clk 0:02:54]} 9. h4 {[%clk 0:02:47]}  g4 {[%clk 0:02:53]} 10. h5 {[%clk 0:02:48]}  h6 {[%clk 0:02:53]} 11. e3 {[%clk 0:02:48]}  f5 {[%clk 0:02:46]} 12. Qc2 {[%clk 0:02:28]}  d6 {[%clk 0:02:43]} 13. O-O-O {[%clk 0:02:26]}  Be6 {[%clk 0:02:36]} 14. c5 {[%clk 0:02:15]}  Qf6 {[%clk 0:02:21]} 15. cxd6 {[%clk 0:01:58]}  cxd6 {[%clk 0:02:20]} 16. Qa4+ {[%clk 0:01:51]}  Bd7 {[%clk 0:02:17]} 17. Qb3 {[%clk 0:01:51]}  Bc6 {[%clk 0:02:03]} 18. Nc4 {[%clk 0:01:32]}  Bf8 {[%clk 0:00:54]} 19. Nxe5 {[%clk 0:00:47]}  dxe5 {[%clk 0:00:53]} 20. Bc4 {[%clk 0:00:31]}  Bd6 {[%clk 0:00:42]} 21. Bh4 {[%clk 0:00:30]}  Qf8 {[%clk 0:00:41]} 22. Bb5 {[%clk 0:00:19]}  Rc8 {[%clk 0:00:37]} 23. Qe6+ {[%clk 0:00:17]}  Be7 {[%clk 0:00:37]} 24. Qxc8+ {[%clk 0:00:17]}  Kf7 {[%clk 0:00:38]} 25. Qxf5+ {[%clk 0:00:18]}  Kg7 {[%clk 0:00:37]} 26. Qxe5+ {[%clk 0:00:18]}  Bf6 {[%clk 0:00:37]} 27. Bxf6+ {[%clk 0:00:18]}  Qxf6 {[%clk 0:00:37]} 28. Qxf6+ {[%clk 0:00:19]}  Kxf6 {[%clk 0:00:37]} 29. Bxc6 {[%clk 0:00:20]}  Rc8 {[%clk 0:00:36]} 30. Rd6+ {[%clk 0:00:21]}  Ke7 {[%clk 0:00:36]} 31. Rhd1 {[%clk 0:00:22]}  bxc6 {[%clk 0:00:24]} 32. Rxh6 {[%clk 0:00:22]} 1-0


[Site "https://www.chess.com"]

[Event "Titled Tuesday Blitz July 11 Late 2023"]
[White "kiwibobo"]
[Black "Kirillov, Dmitry"]
[BlackFideId "34180572"]
[WhiteElo "2325"]
[BlackElo "2532"]
[Result "1-0"]
[Round "6"]
[TimeControl "180+2"]
[Date "2023.07.11"]
[WhiteClock "0:00:23"]
[BlackClock "0:00:00"]
[Board "135"]

1. e4 {[%clk 0:03:00]}  c5 {[%clk 0:02:53]} 2. Nf3 {[%clk 0:03:00]}  e6 {[%clk 0:02:44]} 3. d4 {[%clk 0:03:00]}  cxd4 {[%clk 0:02:45]} 4. Nxd4 {[%clk 0:03:00]}  Qb6 {[%clk 0:02:46]} 5. Nc3 {[%clk 0:02:59]}  Bc5 {[%clk 0:02:45]} 6. Be3 {[%clk 0:02:58]}  Nc6 {[%clk 0:02:45]} 7. Na4 {[%clk 0:02:52]}  Qa5+ {[%clk 0:02:42]} 8. c3 {[%clk 0:02:53]}  Bxd4 {[%clk 0:02:39]} 9. Bxd4 {[%clk 0:02:51]}  Nxd4 {[%clk 0:02:40]} 10. Qxd4 {[%clk 0:02:49]}  e5 {[%clk 0:02:40]} 11. Qd5 {[%clk 0:02:48]}  Qxa4 {[%clk 0:02:30]} 12. Bc4 {[%clk 0:02:35]}  Ne7 {[%clk 0:01:55]} 13. Qxf7+ {[%clk 0:02:32]}  Kd8 {[%clk 0:01:52]} 14. Qxg7 {[%clk 0:02:30]}  Re8 {[%clk 0:01:42]} 15. Qf7 {[%clk 0:01:47]}  b5 {[%clk 0:01:08]} 16. Bd5 {[%clk 0:01:27]}  Nxd5 {[%clk 0:00:52]} 17. Qxd5 {[%clk 0:01:28]}  Rb8 {[%clk 0:00:50]} 18. Rd1 {[%clk 0:01:26]}  Qc4 {[%clk 0:00:44]} 19. Qxc4 {[%clk 0:01:05]}  bxc4 {[%clk 0:00:43]} 20. Rd2 {[%clk 0:01:06]}  Ke7 {[%clk 0:00:38]} 21. O-O {[%clk 0:01:06]}  d6 {[%clk 0:00:38]} 22. Rfd1 {[%clk 0:01:06]}  Rd8 {[%clk 0:00:35]} 23. f4 {[%clk 0:01:05]}  Bg4 {[%clk 0:00:33]} 24. Rf1 {[%clk 0:01:01]}  Be6 {[%clk 0:00:33]} 25. f5 {[%clk 0:00:59]}  Bf7 {[%clk 0:00:33]} 26. g4 {[%clk 0:00:59]}  h6 {[%clk 0:00:33]} 27. h4 {[%clk 0:00:59]}  Rg8 {[%clk 0:00:33]} 28. Rg2 {[%clk 0:00:59]}  Kf6 {[%clk 0:00:26]} 29. Rd1 {[%clk 0:00:53]}  Rb6 {[%clk 0:00:21]} 30. Kh2 {[%clk 0:00:52]}  a5 {[%clk 0:00:15]} 31. Rdg1 {[%clk 0:00:52]}  a4 {[%clk 0:00:12]} 32. g5+ {[%clk 0:00:53]}  hxg5 {[%clk 0:00:12]} 33. hxg5+ {[%clk 0:00:54]}  Ke7 {[%clk 0:00:12]} 34. g6 {[%clk 0:00:49]}  Be8 {[%clk 0:00:09]} 35. Kg3 {[%clk 0:00:45]}  Kf6 {[%clk 0:00:09]} 36. Kf3 {[%clk 0:00:44]}  Bc6 {[%clk 0:00:10]} 37. g7 {[%clk 0:00:42]}  d5 {[%clk 0:00:07]} 38. Rg6+ {[%clk 0:00:38]}  Kf7 {[%clk 0:00:08]} 39. Re6 {[%clk 0:00:34]}  dxe4+ {[%clk 0:00:05]} 40. Ke3 {[%clk 0:00:35]}  Rxg7 {[%clk 0:00:03]} 41. Rxg7+ {[%clk 0:00:32]}  Kxg7 {[%clk 0:00:04]} 42. Rxe5 {[%clk 0:00:32]}  Kf6 {[%clk 0:00:04]} 43. Rc5 {[%clk 0:00:31]}  Bb7 {[%clk 0:00:02]} 44. Rxc4 {[%clk 0:00:30]}  Rxb2 {[%clk 0:00:02]} 45. Rxa4 {[%clk 0:00:30]}  Kxf5 {[%clk 0:00:03]} 46. Ra5+ {[%clk 0:00:30]}  Ke6 {[%clk 0:00:03]} 47. a4 {[%clk 0:00:28]}  Bd5 {[%clk 0:00:04]} 48. Rc5 {[%clk 0:00:25]}  Ra2 {[%clk 0:00:03]} 49. a5 {[%clk 0:00:24]}  Ra3 {[%clk 0:00:00]} 50. Kd4 {[%clk 0:00:23]} 1-0


[Site "https://www.chess.com"]